fUST/lending_fUST_20240115
["ID","MTS","AMOUNT","RATE_DAILY","PERIOD"]
[311596716,1705263045633,-500.0,0.00027397,2]
[311596717,1705263045642,-500.0,0.00027397,2]
[311596718,1705263045652,-814.25,0.00027397,2]
[311596719,1705263045661,-504.24303851,0.00027397,2]
[311596720,1705263045670,-502.24408651,0.00027397,2]
[311596721,1705263045680,-500.0,0.00027397,2]
[311596722,1705263045689,-500.0,0.00027397,2]
[311596723,1705263045699,-500.0,0.00027397,2]
[311596724,1705263045709,-2423.14,0.00027397,2]
[311596725,1705263045718,-500.0,0.00027397,2]
[311596726,1705263045728,-500.0,0.00027397,2]
[311596727,1705263045738,-500.0,0.00027397,2]
[311596728,1705263045748,-500.0,0.00027397,2]
[311596729,1705263045757,-500.0,0.00027397,2]
[311596730,1705263045767,-500.0,0.00027397,2]
[311596731,1705263045777,-500.0,0.00027397,2]
[311596732,1705263045788,-976.46,0.00027397,2]
[311596733,1705263045798,-1176.81,0.00027397,2]
[311596734,1705263045813,-500.0,0.00027397,2]
[311596735,1705263045823,-500.0,0.00027397,2]
[311596736,1705263045832,-500.0,0.00027397,2]
[311596737,1705263045842,-500.0,0.00027397,2]
[311596738,1705263045851,-1448.33,0.00027397,2]
[311596739,1705263045861,-500.0,0.00027397,2]
[311596740,1705263045870,-500.0,0.00027397,2]
[311596741,1705263045879,-416.91907348,0.00027397,2]
[311596742,1705263045888,-465.78510027,0.00027397,2]
[311596743,1705263045898,-827.71,0.00027397,2]
[311596744,1705263045908,-7415.62,0.00027397,2]
[311596745,1705263045918,-2811.62,0.00027397,2]
[311596746,1705263045928,-500.0,0.00027397,2]
[311596747,1705263045937,-473.30424724,0.00027397,2]
[311596748,1705263045946,-818.75,0.00027397,2]
[311596749,1705263045955,-500.0,0.00027397,2]
[311596750,1705263045964,-500.0,0.00027397,2]
[311596751,1705263045974,-500.0,0.00027397,2]
[311596752,1705263045983,-500.0,0.00027397,2]
[311596753,1705263045992,-500.0,0.00027397,2]
[311596754,1705263046002,-10132.55768404,0.000274,2]
[311596755,1705263046011,-42628.56385156,0.000275,2]
[311596756,1705263046020,-500.0,0.00027534,2]
[311596757,1705263046029,-500.0,0.00027671,2]
[311596758,1705263046039,-500.0,0.00027671,2]
[311596759,1705263046048,-500.0,0.00027671,2]
[311596760,1705263046060,-579.19,0.00027671,2]
[311596761,1705263046069,-500.0,0.00027671,2]
[311596762,1705263046078,-500.0,0.00027671,2]
[311596763,1705263046086,-500.0,0.00027671,2]
[311596764,1705263046095,-634.86,0.00027671,2]
[311596765,1705263046104,-500.0,0.00027671,2]
[311596766,1705263046113,-500.0,0.00027671,2]
[311596767,1705263046122,-500.0,0.00027671,2]
[311596768,1705263046131,-500.0,0.00027671,2]
[311596769,1705263046140,-500.0,0.00027671,2]
[311596770,1705263046149,-500.0,0.00027671,2]
[311596771,1705263046158,-500.0,0.00027671,2]
[311596772,1705263046167,-500.0,0.00027671,2]
[311596773,1705263046177,-500.0,0.00027671,2]
[311596774,1705263046186,-623.8853397,0.00027671,2]
[311596775,1705263046196,-500.0,0.00027671,2]
[311596776,1705263046205,-500.0,0.00027671,2]
[311596777,1705263046214,-500.0,0.00027671,2]
[311596778,1705263046223,-500.0,0.00027671,2]
[311596779,1705263046232,-500.0,0.00027671,2]
[311596780,1705263046241,-500.0,0.00027671,2]
[311596781,1705263046250,-1531.15,0.00027671,2]
[311596782,1705263046259,-500.0,0.00027671,2]
[311596783,1705263046268,-1353.65,0.00027671,2]
[311596784,1705263046278,-500.0,0.00027671,2]
[311596785,1705263046287,-500.0,0.00027671,2]
[311596786,1705263046296,-500.0,0.00027671,2]
[311596787,1705263046307,-500.0,0.00027671,2]
[311596788,1705263046316,-691.55,0.00027671,2]
[311596789,1705263046325,-504.48431866,0.00027671,2]
[311596790,1705263046334,-524.89574781,0.00027671,2]
[311596791,1705263046343,-720.62,0.00027671,2]
[311596792,1705263046353,-927.38,0.00027671,2]
[311596793,1705263046365,-365.14044456,0.00027671,2]
[311596795,1705263046374,-288.3056488,0.00027671,2]
[311596797,1705263046383,-500.0,0.00027671,2]
[311596799,1705263046392,-500.0,0.00027671,2]
[311596800,1705263046401,-500.0,0.00027671,2]
[311596802,1705263046410,-500.0,0.00027671,2]
[311596804,1705263046419,-636.10524314,0.00027671,2]
[311596806,1705263046428,-592.13,0.00027671,2]
[311596808,1705263046437,-500.0,0.00027671,2]
[311596809,1705263046446,-500.0,0.00027671,2]
[311596811,1705263046455,-500.0,0.00027671,2]
[311596812,1705263046464,-500.0,0.00027671,2]
[311596813,1705263046473,-500.0,0.00027671,2]
[311596814,1705263046482,-500.0,0.00027671,2]
[311596815,1705263046568,-500.0,0.00027671,2]
[311596816,1705263046578,-712.39,0.00027671,2]
[311596817,1705263046588,-1626.52,0.00027671,2]
[311596818,1705263046597,-200.31408391,0.00027671,2]
[311596819,1705263046607,-500.0,0.00027671,2]
[311596820,1705263046616,-500.0,0.00027671,2]
[311596821,1705263046625,-500.0,0.00027671,2]
[311596822,1705263046634,-500.0,0.00027671,2]
[311596823,1705263046643,-1136.21,0.00027671,2]
[311596824,1705263046652,-500.0,0.00027671,2]
[311596825,1705263046661,-500.0,0.00027671,2]
[311596826,1705263046670,-1239.85,0.00027671,2]
[311596827,1705263046679,-500.0,0.00027671,2]
[311596828,1705263046689,-516.18,0.00027671,2]
[311596829,1705263046698,-768.96,0.00027671,2]
[311596830,1705263046707,-572.74150537,0.00027671,2]
[311596831,1705263046716,-500.0,0.00027671,2]
[311596832,1705263046725,-500.0,0.00027671,2]
[311596833,1705263046734,-773.35,0.00027671,2]
[311596835,1705263046743,-500.0,0.00027671,2]
[311596836,1705263046753,-500.0,0.00027671,2]
[311596837,1705263046762,-500.0,0.00027671,2]
[311596838,1705263046771,-500.0,0.00027671,2]
[311596839,1705263046780,-500.0,0.00027671,2]
[311596840,1705263046790,-461.79230373,0.00027671,2]
[311596841,1705263046801,-500.0,0.00027671,2]
[311596842,1705263046810,-500.0,0.00027671,2]
[311596843,1705263046820,-500.0,0.00027671,2]
[311596844,1705263046830,-500.0,0.00027671,2]
[311596845,1705263046839,-500.0,0.00027671,2]
[311596847,1705263046848,-500.0,0.00027671,2]
[311596848,1705263046857,-522.11357524,0.00027671,2]
[311596850,1705263046866,-500.0,0.00027671,2]
[311596852,1705263046875,-398.43963782,0.00027671,2]
[311596853,1705263046884,-500.0,0.00027671,2]
[311596855,1705263046893,-587.58184042,0.00027671,2]
[311596857,1705263046903,-500.0,0.00027671,2]
[311596858,1705263046912,-500.0,0.00027671,2]
[311596859,1705263046921,-500.0,0.00027671,2]
[311596860,1705263046930,-500.0,0.00027671,2]
[311596861,1705263046940,-2862.49,0.00027671,2]
[311596862,1705263046949,-500.0,0.00027671,2]
[311596863,1705263046959,-1328.06,0.00027671,2]
[311596864,1705263046968,-213.21012901,0.00027671,2]
[311596865,1705263046978,-500.0,0.00027671,2]
[311596866,1705263046987,-517.78557249,0.00027671,2]
[311596867,1705263046997,-500.0,0.00027671,2]
[311596868,1705263047006,-500.0,0.00027671,2]
[311596869,1705263047015,-500.0,0.00027671,2]
[311596870,1705263047024,-1571.32,0.00027671,2]
[311596871,1705263047034,-500.0,0.00027671,2]
[311596872,1705263047043,-500.0,0.00027671,2]
[311596873,1705263047055,-1503.89,0.00027671,2]
[311596874,1705263047064,-324.19753497,0.00027671,2]
[311596875,1705263047072,-500.0,0.00027671,2]
[311596876,1705263047081,-2733.21,0.00027671,2]
[311596877,1705263047090,-500.0,0.00027671,2]
[311596878,1705263047099,-500.0,0.00027671,2]
[311596879,1705263047108,-1162.36,0.00027671,2]
[311596880,1705263047117,-500.0,0.00027671,2]
[311596881,1705263047126,-7234.09,0.00027671,2]
[311596882,1705263047136,-500.0,0.00027671,2]
[311596883,1705263047145,-1559.96,0.00027671,2]
[311596884,1705263047153,-500.0,0.00027671,2]
[311596885,1705263047163,-9029.48,0.00027671,2]
[311596886,1705263047171,-675.99,0.00027671,2]
[311596887,1705263047180,-500.0,0.00027671,2]
[311596888,1705263047190,-500.0,0.00027671,2]
[311596889,1705263047200,-293.74777564,0.00027671,2]
[311596890,1705263047210,-844.11,0.00027671,2]
[311596891,1705263047220,-500.0,0.00027671,2]
[311596892,1705263047229,-2982.14,0.00027671,2]
[311596893,1705263047238,-500.0,0.00027671,2]
[311596894,1705263047248,-425.14723774,0.00027671,2]
[311596895,1705263047257,-500.0,0.00027671,2]
[311596896,1705263047266,-4545.07,0.00027671,2]
[311596897,1705263047275,-500.0,0.00027671,2]
[311596898,1705263047284,-1581.55153665,0.00027671,2]
[311596899,1705263047304,-1985.5364354,0.00027395,2]
[311596900,1705263047314,-292.11846335,0.00027671,2]
[311596901,1705263047323,-500.0,0.00027671,2]
[311596902,1705263047332,-500.0,0.00027671,2]
[311596903,1705263047341,-500.0,0.00027671,2]
[311596904,1705263047350,-501.1,0.00027671,2]
[311596905,1705263047361,-500.0,0.00027671,2]
[311596906,1705263047370,-519.18,0.00027671,2]
[311596907,1705263047379,-6820.11,0.00027671,2]
[311596908,1705263047388,-504.75501369,0.00027671,2]
[311596909,1705263047398,-500.0,0.00027671,2]
[311596910,1705263047407,-16837.20008823,0.00027671,2]
[311596911,1705263047421,-3192.0,0.00027671,2]
[311597539,1705264238272,-155.0294556,0.00024902,4]
[311597541,1705264238282,-166.666666,0.00025383,2]
[311597545,1705264238300,-2873.06799436,0.00025554,2]
[311597547,1705264238312,-2406.52580496,0.00025555,2]
[311597549,1705264238321,-1985.5364354,0.00025556,2]
[311597551,1705264238331,-13108.6014981,0.00025709,2]
[311597553,1705264238340,-172.56175104,0.00026741,3]
[311597555,1705264238350,-2060.84094292,0.00026841,2]
[311597557,1705264238359,-198.8089634,0.000269,2]
[311597559,1705264238368,-198.8089634,0.000269,2]
[311597561,1705264238378,-198.8089634,0.000269,2]
[311597563,1705264238388,-198.8089634,0.00027078,2]
[311597564,1705264238397,-154.98450155,0.00027257,2]
[311597566,1705264238406,-202.1670954,0.00027278,2]
[311597568,1705264238416,-4879.31013241,0.00027297,2]
[311597570,1705264238425,-198.73409094,0.00027395,2]
[311597572,1705264238434,-164.047891,0.00027395,2]
[311597574,1705264238443,-460.75469508,0.00027396,2]
[311597576,1705264238453,-3931.78921365,0.00027396,2]
[311597578,1705264238462,-500.0,0.00027397,2]
[311597580,1705264238471,-500.0,0.00027397,2]
[311597582,1705264238481,-500.0,0.00027397,2]
[311597584,1705264238490,-381.60232911,0.00027397,2]
[311597586,1705264238500,-500.0,0.00027397,2]
[311597588,1705264238509,-500.0,0.00027397,2]
[311597590,1705264238519,-500.0,0.00027397,2]
[311597592,1705264238528,-500.0,0.00027397,2]
[311597594,1705264238538,-500.0,0.00027397,2]
[311597596,1705264238547,-500.0,0.00027397,2]
[311597598,1705264238556,-500.0,0.00027397,2]
[311597600,1705264238566,-500.0,0.00027397,2]
[311597602,1705264238574,-506.77755744,0.00027397,2]
[311597604,1705264238584,-500.0,0.00027397,2]
[311597606,1705264238593,-382.37264958,0.00027397,2]
[311597608,1705264238603,-500.0,0.00027397,2]
[311597610,1705264238613,-500.0,0.00027397,2]
[311597612,1705264238622,-414.16133919,0.00027397,2]
[311597614,1705264238632,-500.0,0.00027397,2]
[311597616,1705264238641,-502.48431119,0.00027397,2]
[311597617,1705264238651,-500.0,0.00027397,2]
[311597618,1705264238661,-355.40945307,0.00027397,2]
[311597619,1705264238670,-500.0,0.00027397,2]
[311597620,1705264238680,-507.57844526,0.00027397,2]
[311597622,1705264238690,-500.0,0.00027397,2]
[311597623,1705264238700,-500.0,0.00027397,2]
[311597624,1705264238709,-1533.84,0.00027397,2]
[311597625,1705264238718,-168.28933158,0.00027397,2]
[311597627,1705264238727,-349.82002498,0.00027397,2]
[311597629,1705264238736,-500.0,0.00027397,2]
[311597631,1705264238745,-254.25658463,0.00027397,2]
[311597633,1705264238755,-500.0,0.00027397,2]
[311597635,1705264238764,-500.0,0.00027397,2]
[311597636,1705264238774,-500.0,0.00027397,2]
[311597638,1705264238784,-500.0,0.00027397,2]
[311597641,1705264238794,-500.0,0.00027397,2]
[311597643,1705264238803,-508.05153115,0.00027397,2]
[311597645,1705264238812,-500.0,0.00027397,2]
[311597646,1705264238824,-325.94231733,0.00027397,2]
[311597648,1705264238833,-500.0,0.00027397,2]
[311597650,1705264238844,-500.0,0.00027397,2]
[311597652,1705264238853,-500.0,0.00027397,2]
[311597655,1705264238863,-500.0,0.00027397,2]
[311597656,1705264238873,-500.0,0.00027397,2]
[311597659,1705264238883,-500.0,0.00027397,2]
[311597661,1705264238893,-500.0,0.00027397,2]
[311597676,1705264239024,-963.8,0.00027397,2]
[311597678,1705264239036,-500.0,0.00027397,2]
[311597680,1705264239045,-722.62,0.00027397,2]
[311597682,1705264239054,-500.0,0.00027397,2]
[311597684,1705264239064,-500.0,0.00027397,2]
[311597686,1705264239074,-500.0,0.00027397,2]
[311597688,1705264239082,-500.0,0.00027397,2]
[311597690,1705264239092,-500.0,0.00027397,2]
[311597692,1705264239102,-628.49457339,0.00027397,2]
[311597694,1705264239112,-500.0,0.00027397,2]
[311597696,1705264239122,-500.0,0.00027397,2]
[311597698,1705264239131,-495.43129305,0.00027397,2]
[311597700,1705264239141,-500.0,0.00027397,2]
[311597702,1705264239150,-500.0,0.00027397,2]
[311597704,1705264239160,-500.0,0.00027397,2]
[311597706,1705264239169,-592.04810847,0.00027397,2]
[311597708,1705264239180,-155.39027644,0.00027397,2]
[311597710,1705264239189,-500.0,0.00027397,2]
[311597712,1705264239198,-503.79077812,0.00027397,2]
[311597714,1705264239208,-336.65608746,0.00027397,2]
[311597716,1705264239216,-765.6,0.00027397,2]
[311597717,1705264239225,-500.0,0.00027397,2]
[311597719,1705264239234,-500.0,0.00027397,2]
[311597721,1705264239244,-500.0,0.00027397,2]
[311597723,1705264239253,-500.0,0.00027397,2]
[311597725,1705264239261,-500.0,0.00027397,2]
[311597727,1705264239271,-500.0,0.00027397,2]
[311597729,1705264239280,-500.0,0.00027397,2]
[311597731,1705264239290,-500.0,0.00027397,2]
[311597733,1705264239299,-500.0,0.00027397,2]
[311597735,1705264239309,-401.11191083,0.00027397,2]
[311597737,1705264239319,-503.2183656,0.00027397,2]
[311597739,1705264239328,-500.0,0.00027397,2]
[311597741,1705264239336,-500.0,0.00027397,2]
[311597743,1705264239345,-500.0,0.00027397,2]
[311597745,1705264239354,-500.0,0.00027397,2]
[311597746,1705264239363,-501.50194753,0.00027397,2]
[311597748,1705264239372,-500.0,0.00027397,2]
[311597750,1705264239382,-500.0,0.00027397,2]
[311597752,1705264239391,-376.85988352,0.00027397,2]
[311597753,1705264239400,-500.0,0.00027397,2]
[311597754,1705264239409,-500.0,0.00027397,2]
[311597755,1705264239418,-500.0,0.00027397,2]
[311597756,1705264239426,-516.84449583,0.00027397,2]
[311597757,1705264239435,-500.0,0.00027397,2]
[311597758,1705264239444,-799.18,0.00027397,2]
[311597759,1705264239452,-500.0,0.00027397,2]
[311597760,1705264239461,-200.29082634,0.00027397,2]
[311597761,1705264239470,-500.0,0.00027397,2]
[311597762,1705264239479,-500.0,0.00027397,2]
[311597763,1705264239488,-1000.0,0.00027397,2]
[311597764,1705264239497,-300.0,0.00027397,2]
[311597765,1705264239505,-502.33023252,0.00027397,2]
[311597766,1705264239514,-1000.0,0.00027397,2]
[311597767,1705264239522,-219.2266799,0.00027397,2]
[311597769,1705264239531,-500.0,0.00027397,2]
[311597770,1705264239540,-359.68166785,0.00027397,2]
[311597771,1705264239548,-500.0,0.00027397,2]
[311597772,1705264239557,-2844.31,0.00027397,2]
[311597773,1705264239566,-500.0,0.00027397,2]
[311597774,1705264239575,-500.0,0.00027397,2]
[311597775,1705264239584,-500.0,0.00027397,2]
[311597776,1705264239592,-500.0,0.00027397,2]
[311597777,1705264239601,-156.69701494,0.00027397,2]
[311597778,1705264239610,-500.0,0.00027397,2]
[311597779,1705264239618,-225.43281937,0.00027397,2]
[311597780,1705264239627,-500.0,0.00027397,2]
[311597781,1705264239636,-500.0,0.00027397,2]
[311597782,1705264239645,-1623.89718729,0.00027397,2]
[311597783,1705264239654,-500.0,0.00027397,2]
[311597784,1705264239662,-500.0,0.00027397,2]
[311597785,1705264239671,-500.0,0.00027397,2]
[311597786,1705264239680,-620.59724494,0.00027397,2]
[311597787,1705264239689,-500.0,0.00027397,2]
[311597788,1705264239698,-537.38332628,0.00027397,2]
[311597789,1705264239707,-500.0,0.00027397,2]
[311597790,1705264239716,-1423.28,0.00027397,2]
[311597791,1705264239725,-500.0,0.00027397,2]
[311597792,1705264239733,-500.0,0.00027397,2]
[311597793,1705264239742,-500.0,0.00027397,2]
[311597794,1705264239751,-500.0,0.00027397,2]
[311597796,1705264239760,-540.1999381,0.00027397,2]
[311597798,1705264239769,-500.0,0.00027397,2]
[311597800,1705264239778,-500.0,0.00027397,2]
[311597802,1705264239787,-500.0,0.00027397,2]
[311597804,1705264239796,-166.15850986,0.00027397,2]
[311597806,1705264239805,-500.0,0.00027397,2]
[311597808,1705264239814,-662.14,0.00027397,2]
[311597810,1705264239825,-500.0,0.00027397,2]
[311597812,1705264239834,-500.0,0.00027397,2]
[311597814,1705264239842,-500.0,0.00027397,2]
[311597816,1705264239851,-500.0,0.00027397,2]
[311597818,1705264239860,-500.0,0.00027397,2]
[311597820,1705264239870,-500.0,0.00027397,2]
[311597822,1705264239879,-500.0,0.00027397,2]
[311597824,1705264239887,-633.41,0.00027397,2]
[311597826,1705264239897,-500.0,0.00027397,2]
[311597828,1705264239906,-500.0,0.00027397,2]
[311597830,1705264239915,-500.0,0.00027397,2]
[311597832,1705264239924,-500.0,0.00027397,2]
[311597834,1705264239933,-500.0,0.00027397,2]
[311597836,1705264239941,-500.0,0.00027397,2]
[311597838,1705264239950,-500.0,0.00027397,2]
[311597840,1705264239959,-500.0,0.00027397,2]
[311597842,1705264239968,-500.0,0.00027397,2]
[311597844,1705264239977,-500.0,0.00027397,2]
[311597846,1705264239986,-500.0,0.00027397,2]
[311597848,1705264239996,-500.0,0.00027397,2]
[311597850,1705264240005,-500.0,0.00027397,2]
[311597852,1705264240014,-500.0,0.00027397,2]
[311597854,1705264240023,-500.0,0.00027397,2]
[311597856,1705264240033,-639.85514929,0.00027397,2]
[311597858,1705264240042,-500.0,0.00027397,2]
[311597860,1705264240051,-500.0,0.00027397,2]
[311597862,1705264240060,-500.0,0.00027397,2]
[311597864,1705264240069,-500.0,0.00027397,2]
[311597866,1705264240079,-500.0,0.00027397,2]
[311597869,1705264240088,-500.0,0.00027397,2]
[311597871,1705264240097,-500.0,0.00027397,2]
[311597874,1705264240106,-1693.63,0.00027397,2]
[311597876,1705264240117,-500.0,0.00027397,2]
[311597878,1705264240126,-500.0,0.00027397,2]
[311597880,1705264240136,-500.0,0.00027397,2]
[311597882,1705264240146,-503.5641367,0.00027397,2]
[311597884,1705264240154,-500.0,0.00027397,2]
[311597886,1705264240164,-500.0,0.00027397,2]
[311597888,1705264240172,-500.0,0.00027397,2]
[311597890,1705264240181,-500.0,0.00027397,2]
[311597892,1705264240190,-523.64838883,0.00027397,2]
[311597894,1705264240199,-500.0,0.00027397,2]
[311597896,1705264240210,-500.0,0.00027397,2]
[311597898,1705264240220,-500.0,0.00027397,2]
[311597900,1705264240229,-500.0,0.00027397,2]
[311597903,1705264240238,-500.0,0.00027397,2]
[311597906,1705264240248,-500.0,0.00027397,2]
[311597908,1705264240257,-500.0,0.00027397,2]
[311597911,1705264240266,-500.0,0.00027397,2]
[311597913,1705264240275,-373.72376298,0.00027397,2]
[311597915,1705264240284,-1314.65,0.00027397,2]
[311597917,1705264240293,-1129.8,0.00027397,2]
[311597919,1705264240302,-500.0,0.00027397,2]
[311597921,1705264240311,-500.0,0.00027397,2]
[311597923,1705264240320,-500.0,0.00027397,2]
[311597925,1705264240330,-500.0,0.00027397,2]
[311597927,1705264240339,-520.84,0.00027397,2]
[311597929,1705264240348,-500.0,0.00027397,2]
[311597931,1705264240357,-500.0,0.00027397,2]
[311597933,1705264240367,-500.0,0.00027397,2]
[311597935,1705264240376,-786.77,0.00027397,2]
[311597937,1705264240385,-540.92,0.00027397,2]
[311597939,1705264240394,-540.92,0.00027397,2]
[311597941,1705264240403,-540.92,0.00027397,2]
[311597943,1705264240412,-540.92,0.00027397,2]
[311597945,1705264240420,-500.0,0.00027397,2]
[311597948,1705264240439,-500.0,0.00027397,2]
[311597950,1705264240450,-500.0,0.00027397,2]
[311597952,1705264240459,-500.0,0.00027397,2]
[311597954,1705264240469,-500.0,0.00027397,2]
[311597957,1705264240478,-502.24841496,0.00027397,2]
[311597958,1705264240487,-500.0,0.00027397,2]
[311597961,1705264240497,-500.0,0.00027397,2]
[311597963,1705264240506,-500.0,0.00027397,2]
[311597965,1705264240515,-500.0,0.00027397,2]
[311597967,1705264240525,-500.0,0.00027397,2]
[311597969,1705264240534,-500.0,0.00027397,2]
[311597971,1705264240543,-516.52958642,0.00027397,2]
[311597973,1705264240553,-500.0,0.00027397,2]
[311597975,1705264240562,-500.0,0.00027397,2]
[311597977,1705264240571,-500.0,0.00027397,2]
[311597979,1705264240582,-500.0,0.00027397,2]
[311597981,1705264240592,-500.0,0.00027397,2]
[311597983,1705264240601,-320.01305771,0.00027397,2]
[311597985,1705264240610,-500.0,0.00027397,2]
[311597987,1705264240620,-500.0,0.00027397,2]
[311597989,1705264240629,-500.0,0.00027397,2]
[311597991,1705264240639,-224.37689626,0.00027397,2]
[311597993,1705264240649,-500.0,0.00027397,2]
[311597995,1705264240658,-500.0,0.00027397,2]
[311597997,1705264240668,-500.0,0.00027397,2]
[311597999,1705264240677,-1177.26,0.00027397,2]
[311598001,1705264240687,-577.38270895,0.00027397,2]
[311598003,1705264240696,-500.94425722,0.00027397,2]
[311598005,1705264240705,-1449.61,0.00027397,2]
[311598007,1705264240715,-500.0,0.00027397,2]
[311598009,1705264240725,-500.0,0.00027397,2]
[311598011,1705264240735,-2627.62,0.00027397,2]
[311598013,1705264240745,-7106.64,0.00027397,2]
[311598015,1705264240755,-916.87,0.00027397,2]
[311598017,1705264240764,-500.0,0.00027397,2]
[311598019,1705264240774,-500.0,0.00027397,2]
[311598021,1705264240783,-500.0,0.00027397,2]
[311598023,1705264240793,-174.42268103,0.00027397,2]
[311598025,1705264240802,-501.32142053,0.00027397,2]
[311598028,1705264240813,-826.08,0.00027397,2]
[311598030,1705264240823,-500.0,0.00027397,2]
[311598032,1705264240832,-1337.99,0.00027397,2]
[311598034,1705264240842,-500.0,0.00027397,2]
[311598036,1705264240851,-500.0,0.00027397,2]
[311598038,1705264240860,-500.0,0.00027397,2]
[311598040,1705264240869,-500.0,0.00027397,2]
[311598042,1705264240879,-500.0,0.00027397,2]
[311598044,1705264240888,-1566.52,0.00027397,2]
[311598046,1705264240897,-500.0,0.00027397,2]
[311598048,1705264240907,-500.0,0.00027397,2]
[311598050,1705264240916,-500.0,0.00027397,2]
[311598052,1705264240926,-1129.25,0.00027397,2]
[311598054,1705264240936,-500.0,0.00027397,2]
[311598056,1705264240945,-500.0,0.00027397,2]
[311598058,1705264240954,-500.0,0.00027397,2]
[311598060,1705264240964,-514.75649595,0.00027397,2]
[311598062,1705264240973,-191.76498961,0.00027397,2]
[311598064,1705264240985,-630.18856611,0.00027397,2]
[311598066,1705264240995,-500.0,0.00027397,2]
[311598079,1705264241106,-500.0,0.00027397,2]
[311598081,1705264241116,-500.0,0.00027397,2]
[311598083,1705264241125,-500.0,0.00027397,2]
[311598085,1705264241138,-500.0,0.00027397,2]
[311598087,1705264241147,-500.0,0.00027397,2]
[311598089,1705264241157,-500.0,0.00027397,2]
[311598091,1705264241166,-500.0,0.00027397,2]
[311598093,1705264241175,-500.0,0.00027397,2]
[311598095,1705264241184,-637.41,0.00027397,2]
[311598097,1705264241193,-500.0,0.00027397,2]
[311598099,1705264241202,-500.0,0.00027397,2]
[311598101,1705264241211,-500.0,0.00027397,2]
[311598103,1705264241220,-500.0,0.00027397,2]
[311598105,1705264241229,-500.0,0.00027397,2]
[311598107,1705264241239,-500.0,0.00027397,2]
[311598109,1705264241248,-500.0,0.00027397,2]
[311598111,1705264241257,-500.0,0.00027397,2]
[311598113,1705264241266,-1637.5,0.00027397,2]
[311598115,1705264241275,-500.0,0.00027397,2]
[311598117,1705264241284,-500.0,0.00027397,2]
[311598119,1705264241294,-155.0,0.00027397,2]
[311598121,1705264241303,-500.0,0.00027397,2]
[311598123,1705264241312,-844.47,0.00027397,2]
[311598125,1705264241322,-1561.61,0.00027397,2]
[311598126,1705264241331,-500.0,0.00027397,2]
[311598129,1705264241341,-500.0,0.00027397,2]
[311598131,1705264241350,-500.0,0.00027397,2]
[311598133,1705264241359,-20131.27,0.00027397,2]
[311598134,1705264241368,-3193.22,0.00027397,2]
[311598136,1705264241378,-500.0,0.00027397,2]
[311598139,1705264241387,-661.29,0.00027397,2]
[311598141,1705264241396,-956.61,0.00027397,2]
[311598142,1705264241405,-500.0,0.00027397,2]
[311598144,1705264241415,-727.2,0.00027397,2]
[311598147,1705264241424,-7327.27,0.00027397,2]
[311598149,1705264241433,-538.42213819,0.00027397,2]
[311598151,1705264241443,-500.0,0.00027397,2]
[311598153,1705264241451,-500.0,0.00027397,2]
[311598155,1705264241461,-500.0,0.00027397,2]
[311598156,1705264241470,-500.0,0.00027397,2]